fUST/lending_fUST_20240824
["ID","MTS","AMOUNT","RATE_DAILY","PERIOD"]
[335690996,1724434242293,-151.0,0.00017962,2]
[335690997,1724434242302,-151.0,0.00017962,2]
[335690998,1724434242311,-151.0,0.00017962,2]
[335690999,1724434242321,-151.0,0.00017962,2]
[335691000,1724434242331,-151.0,0.00017962,2]
[335691001,1724434242341,-1038.412442,0.00017962,2]
[335691002,1724434242351,-1038.412442,0.00017962,2]
[335691003,1724434242361,-1038.412442,0.00017962,2]
[335691004,1724434242370,-1038.412442,0.00017962,2]
[335691005,1724434242380,-1038.412442,0.00017962,2]
[335691006,1724434242389,-151.0,0.00017962,2]
[335691007,1724434242399,-151.0,0.00017962,2]
[335691008,1724434242408,-151.0,0.00017962,2]
[335691009,1724434242419,-151.0,0.00017962,2]
[335691010,1724434242428,-151.0,0.00017962,2]
[335691011,1724434242438,-1038.412442,0.00017962,2]
[335691013,1724434242448,-1038.412442,0.00017962,2]
[335691015,1724434242458,-1038.412442,0.00017962,2]
[335691017,1724434242467,-1038.412442,0.00017962,2]
[335691018,1724434242477,-1038.412442,0.00017962,2]
[335691019,1724434242486,-151.0,0.00017962,2]
[335691020,1724434242495,-151.0,0.00017962,2]
[335691021,1724434242504,-151.0,0.00017962,2]
[335691022,1724434242513,-151.0,0.00017962,2]
[335691023,1724434242523,-151.0,0.00017962,2]
[335691024,1724434242532,-254.885953,0.00017962,2]
[335691025,1724434242542,-254.885953,0.00017962,2]
[335691026,1724434242552,-254.885953,0.00017962,2]
[335691027,1724434242562,-254.885953,0.00017962,2]
[335691028,1724434242571,-254.885953,0.00017962,2]
[335691029,1724434242580,-254.885953,0.00017962,2]
[335691030,1724434242590,-254.885953,0.00017962,2]
[335691031,1724434242599,-254.885953,0.00017962,2]
[335691032,1724434242609,-254.885953,0.00017962,2]
[335691034,1724434242620,-254.885953,0.00017962,2]
[335691036,1724434242630,-414.268343,0.00017962,2]
[335691038,1724434242639,-414.268343,0.00017962,2]
[335691040,1724434242649,-414.268343,0.00017962,2]
[335691042,1724434242659,-414.268343,0.00017962,2]
[335691044,1724434242669,-414.268343,0.00017962,2]
[335691046,1724434242679,-414.268343,0.00017962,2]
[335691048,1724434242688,-414.268343,0.00017962,2]
[335691050,1724434242697,-414.268343,0.00017962,2]
[335691052,1724434242707,-414.268343,0.00017962,2]
[335691054,1724434242717,-414.268343,0.00017962,2]
[335691056,1724434242726,-151.0,0.00017962,2]
[335691058,1724434242736,-151.0,0.00017962,2]
[335691060,1724434242745,-151.0,0.00017962,2]
[335691062,1724434242754,-151.0,0.00017962,2]
[335691064,1724434242764,-151.0,0.00017962,2]
[335691066,1724434242774,-151.0,0.00017962,2]
[335691069,1724434242783,-1537.557311,0.00017962,2]
[335691071,1724434242793,-1537.557311,0.00017962,2]
[335691073,1724434242803,-1537.557311,0.00017962,2]
[335691075,1724434242813,-1537.557311,0.00017962,2]
[335691077,1724434242826,-1537.557311,0.00017962,2]
[335691079,1724434242835,-335.676683,0.00017962,2]
[335691081,1724434242845,-335.676683,0.00017962,2]
[335691083,1724434242854,-1537.557311,0.00017962,2]
[335691085,1724434242866,-335.676683,0.00017962,2]
[335691087,1724434242875,-1537.557311,0.00017962,2]
[335691089,1724434242885,-335.676683,0.00017962,2]
[335691091,1724434242896,-1537.557311,0.00017962,2]
[335691093,1724434242905,-1537.557311,0.00017962,2]
[335691096,1724434242915,-1537.557311,0.00017962,2]
[335691099,1724434242924,-335.676683,0.00017962,2]
[335691101,1724434242933,-335.676683,0.00017962,2]
[335691104,1724434242943,-335.676683,0.00017962,2]
[335691107,1724434242952,-335.676683,0.00017962,2]
[335691110,1724434242961,-463.55838,0.00017962,2]
[335691113,1724434242970,-463.55838,0.00017962,2]
[335691115,1724434242979,-463.55838,0.00017962,2]
[335691117,1724434242989,-463.55838,0.00017962,2]
[335691119,1724434242997,-463.55838,0.00017962,2]
[335691121,1724434243006,-463.55838,0.00017962,2]
[335691124,1724434243016,-463.55838,0.00017962,2]
[335691127,1724434243025,-463.55838,0.00017962,2]
[335691129,1724434243034,-463.55838,0.00017962,2]
[335691131,1724434243043,-463.55838,0.00017962,2]
[335691133,1724434243054,-151.0,0.00017962,2]
[335691135,1724434243063,-151.0,0.00017962,2]
[335691137,1724434243073,-151.0,0.00017962,2]
[335691139,1724434243082,-151.0,0.00017962,2]
[335691141,1724434243091,-151.0,0.00017962,2]
[335691143,1724434243101,-151.0,0.00017962,2]
[335691145,1724434243111,-151.0,0.00017962,2]
[335691147,1724434243120,-151.0,0.00017962,2]
[335691149,1724434243130,-1840.442101,0.00017962,2]
[335691151,1724434243139,-1840.442101,0.00017962,2]
[335691153,1724434243148,-1840.442101,0.00017962,2]
[335691155,1724434243158,-1840.442101,0.00017962,2]
[335691157,1724434243167,-1840.442101,0.00017962,2]
[335691159,1724434243176,-1840.442101,0.00017962,2]
[335691162,1724434243185,-1840.442101,0.00017962,2]
[335691164,1724434243195,-1840.442101,0.00017962,2]
[335691165,1724434243204,-151.0,0.00017962,2]
[335691167,1724434243213,-155.667433,0.00017962,2]
[335691169,1724434243224,-165.907152,0.00017962,2]
[335691171,1724434243233,-165.907152,0.00017962,2]
[335691173,1724434243243,-165.907152,0.00017962,2]
[335691175,1724434243253,-165.907152,0.00017962,2]
[335691177,1724434243263,-165.907152,0.00017962,2]
[335691204,1724434243273,-165.907152,0.00017962,2]
[335691206,1724434243516,-165.907152,0.00017962,2]
[335691208,1724434243527,-165.907152,0.00017962,2]
[335691211,1724434243536,-613.776777,0.00017962,2]
[335691213,1724434243548,-613.776777,0.00017962,2]
[335691215,1724434243557,-613.776777,0.00017962,2]
[335691217,1724434243566,-613.776777,0.00017962,2]
[335691219,1724434243576,-613.776777,0.00017962,2]
[335691221,1724434243585,-613.776777,0.00017962,2]
[335691223,1724434243594,-613.776777,0.00017962,2]
[335691225,1724434243604,-613.776777,0.00017962,2]
[335691227,1724434243613,-448.94596,0.00017962,2]
[335691229,1724434243622,-448.94596,0.00017962,2]
[335691231,1724434243631,-448.94596,0.00017962,2]
[335691233,1724434243642,-448.94596,0.00017962,2]
[335691235,1724434243651,-448.94596,0.00017962,2]
[335691237,1724434243661,-448.94596,0.00017962,2]
[335691239,1724434243671,-448.94596,0.00017962,2]
[335691241,1724434243682,-448.94596,0.00017962,2]
[335691243,1724434243691,-151.0,0.00017962,2]
[335691245,1724434243701,-151.0,0.00017962,2]
[335691247,1724434243711,-151.0,0.00017962,2]
[335691249,1724434243721,-151.0,0.00017962,2]
[335691251,1724434243732,-151.0,0.00017962,2]
[335691254,1724434243741,-151.0,0.00017962,2]
[335691256,1724434243751,-151.0,0.00017962,2]
[335691258,1724434243759,-151.0,0.00017962,2]
[335691260,1724434243769,-294.343446,0.00017962,2]
[335691262,1724434243779,-187.357909,0.00017962,2]
[335691264,1724434243789,-187.357909,0.00017962,2]
[335691266,1724434243800,-187.357909,0.00017962,2]
[335691268,1724434243809,-187.357909,0.00017962,2]
[335691270,1724434243825,-187.357909,0.00017962,2]
[335691272,1724434243836,-187.357909,0.00017962,2]
[335691275,1724434243848,-187.357909,0.00017962,2]
[335691277,1724434243859,-187.357909,0.00017962,2]
[335691279,1724434243869,-867.622889,0.00017962,2]
[335691281,1724434243878,-867.622889,0.00017962,2]
[335691283,1724434243892,-867.622889,0.00017962,2]
[335691285,1724434243902,-867.622889,0.00017962,2]
[335691287,1724434243912,-206.141061,0.00017962,2]
[335691289,1724434243922,-206.141061,0.00017962,2]
[335691291,1724434243932,-206.141061,0.00017962,2]
[335691294,1724434243942,-206.141061,0.00017962,2]
[335691296,1724434243952,-867.622889,0.00017962,2]
[335691298,1724434243962,-867.622889,0.00017962,2]
[335691300,1724434243972,-867.622889,0.00017962,2]
[335691302,1724434243982,-867.622889,0.00017962,2]
[335691304,1724434243993,-206.141061,0.00017962,2]
[335691306,1724434244002,-206.141061,0.00017962,2]
[335691308,1724434244014,-206.141061,0.00017962,2]
[335691310,1724434244024,-206.141061,0.00017962,2]
[335691312,1724434244034,-151.0,0.00017962,2]
[335691314,1724434244045,-151.0,0.00017962,2]
[335691316,1724434244054,-151.0,0.00017962,2]
[335691319,1724434244067,-151.0,0.00017962,2]
[335691321,1724434244079,-151.0,0.00017962,2]
[335691323,1724434244090,-151.0,0.00017962,2]
[335691325,1724434244102,-151.0,0.00017962,2]
[335691328,1724434244112,-151.0,0.00017962,2]
[335691330,1724434244122,-151.0,0.00017962,2]
[335691332,1724434244133,-151.0,0.00017962,2]
[335691334,1724434244144,-151.0,0.00017962,2]
[335691336,1724434244155,-151.0,0.00017962,2]
[335691338,1724434244166,-151.0,0.00017962,2]
[335691341,1724434244178,-151.0,0.00017962,2]
[335691343,1724434244188,-151.0,0.00017962,2]
[335691345,1724434244199,-151.0,0.00017962,2]
[335691347,1724434244210,-151.0,0.00017962,2]
[335691349,1724434244220,-151.0,0.00017962,2]
[335691351,1724434244230,-151.0,0.00017962,2]
[335691353,1724434244240,-151.0,0.00017962,2]
[335691355,1724434244249,-3329.055522,0.00017962,2]
[335691357,1724434244259,-3329.055522,0.00017962,2]
[335691359,1724434244268,-3329.055522,0.00017962,2]
[335691362,1724434244278,-3329.055522,0.00017962,2]
[335691363,1724434244287,-151.0,0.00017962,2]
[335691365,1724434244298,-151.0,0.00017962,2]
[335691367,1724434244308,-151.0,0.00017962,2]
[335691369,1724434244317,-151.0,0.00017962,2]
[335691372,1724434244327,-3329.055522,0.00017962,2]
[335691374,1724434244341,-3329.055522,0.00017962,2]
[335691376,1724434244351,-3329.055522,0.00017962,2]
[335691378,1724434244361,-3329.055522,0.00017962,2]
[335691379,1724434244370,-151.0,0.00017962,2]
[335691380,1724434244379,-151.0,0.00017962,2]
[335691381,1724434244389,-151.0,0.00017962,2]
[335691382,1724434244398,-151.0,0.00017962,2]
[335691383,1724434244408,-254.034173,0.00017962,2]
[335691384,1724434244418,-1637.836789,0.00017962,2]
[335691385,1724434244428,-1637.836789,0.00017962,2]
[335691386,1724434244439,-1637.836789,0.00017962,2]
[335691387,1724434244449,-1637.836789,0.00017962,2]
[335691388,1724434244459,-1637.836789,0.00017962,2]
[335691389,1724434244469,-1637.836789,0.00017962,2]
[335691390,1724434244479,-1637.836789,0.00017962,2]
[335691391,1724434244488,-1637.836789,0.00017962,2]
[335691392,1724434244498,-151.0,0.00017962,2]
[335691393,1724434244507,-151.0,0.00017962,2]
[335691394,1724434244517,-151.0,0.00017962,2]
[335691396,1724434244529,-180.650672,0.00017962,2]
[335691398,1724434244539,-958.575317,0.00017962,2]
[335691400,1724434244554,-958.575317,0.00017962,2]
[335691402,1724434244563,-958.575317,0.00017962,2]
[335691404,1724434244573,-958.575317,0.00017962,2]
[335691406,1724434244583,-1425.303421,0.00017962,2]
[335691408,1724434244593,-1425.303421,0.00017962,2]
[335691410,1724434244603,-1425.303421,0.00017962,2]
[335691412,1724434244613,-1425.303421,0.00017962,2]
[335691414,1724434244623,-958.575317,0.00017962,2]
[335691416,1724434244633,-958.575317,0.00017962,2]
[335691418,1724434244643,-958.575317,0.00017962,2]
[335691420,1724434244653,-958.575317,0.00017962,2]
[335691422,1724434244663,-1425.303421,0.00017962,2]
[335691424,1724434244675,-1425.303421,0.00017962,2]
[335691426,1724434244684,-1425.303421,0.00017962,2]
[335691429,1724434244694,-1425.303421,0.00017962,2]
[335691431,1724434244704,-3443.734282,0.00017962,2]
[335691433,1724434244713,-3443.734282,0.00017962,2]
[335691434,1724434244723,-3443.734282,0.00017962,2]
[335691437,1724434244733,-3443.734282,0.00017962,2]
[335691439,1724434244742,-3443.734282,0.00017962,2]
[335691441,1724434244752,-3443.734282,0.00017962,2]
[335691443,1724434244762,-917.58423592,0.00017962,2]
[335691541,1724434245780,-151.0,0.00017952,2]
[335691542,1724434245789,-2526.15004608,0.00017962,2]
[335691544,1724434245800,-3443.734282,0.00017962,2]
[335691546,1724434245810,-341.122571,0.00017962,2]
[335691548,1724434245824,-341.122571,0.00017962,2]
[335691550,1724434245833,-551.988409,0.00017962,2]
[335691551,1724434245843,-341.122571,0.00017962,2]
[335691553,1724434245854,-551.988409,0.00017962,2]
[335691554,1724434245866,-551.988409,0.00017962,2]
[335691555,1724434245875,-341.122571,0.00017962,2]
[335691556,1724434245884,-551.988409,0.00017962,2]
[335691557,1724434245895,-551.988409,0.00017962,2]
[335691558,1724434245904,-341.122571,0.00017962,2]
[335691559,1724434245913,-551.988409,0.00017962,2]
[335691560,1724434245923,-341.122571,0.00017962,2]
[335691561,1724434245932,-551.988409,0.00017962,2]
[335691562,1724434245944,-341.122571,0.00017962,2]
[335691563,1724434245954,-341.122571,0.00017962,2]
[335691564,1724434245964,-551.988409,0.00017962,2]
[335691565,1724434245975,-813.570931,0.00017962,2]
[335691566,1724434245984,-813.570931,0.00017962,2]
[335691567,1724434245994,-813.570931,0.00017962,2]
[335691568,1724434246004,-813.570931,0.00017962,2]
[335691569,1724434246014,-813.570931,0.00017962,2]
[335691570,1724434246024,-813.570931,0.00017962,2]
[335691571,1724434246033,-813.570931,0.00017962,2]
[335691572,1724434246045,-813.570931,0.00017962,2]
[335691573,1724434246055,-2546.27621,0.00017962,2]
[335691574,1724434246065,-2546.27621,0.00017962,2]
[335691575,1724434246075,-2546.27621,0.00017962,2]
[335691576,1724434246086,-2546.27621,0.00017962,2]
[335691577,1724434246095,-2546.27621,0.00017962,2]
[335691578,1724434246104,-2546.27621,0.00017962,2]
[335691579,1724434246114,-2546.27621,0.00017962,2]
[335691580,1724434246125,-2546.27621,0.00017962,2]
[335691581,1724434246136,-4982.926965,0.00017962,2]
[335691582,1724434246147,-4982.926965,0.00017962,2]
[335691583,1724434246158,-4982.926965,0.00017962,2]
[335691584,1724434246168,-4982.926965,0.00017962,2]
[335691585,1724434246178,-4982.926965,0.00017962,2]
[335691586,1724434246187,-4982.926965,0.00017962,2]
[335691587,1724434246197,-4982.926965,0.00017962,2]
[335691588,1724434246207,-4982.926965,0.00017962,2]
[335691589,1724434246217,-151.0,0.00017962,2]
[335691590,1724434246227,-151.0,0.00017962,2]
[335691591,1724434246237,-151.0,0.00017962,2]
[335691592,1724434246246,-151.0,0.00017962,2]
[335691593,1724434246256,-2090.200606,0.00017962,2]
[335691594,1724434246265,-2090.200606,0.00017962,2]
[335691595,1724434246276,-2090.200606,0.00017962,2]
[335691596,1724434246286,-2090.200606,0.00017962,2]
[335691597,1724434246296,-2090.200606,0.00017962,2]
[335691598,1724434246306,-2090.200606,0.00017962,2]
[335691599,1724434246315,-2090.200606,0.00017962,2]
[335691600,1724434246326,-2090.200606,0.00017962,2]
[335691601,1724434246337,-421.412362,0.00017962,2]
[335691602,1724434246348,-421.412362,0.00017962,2]
[335691603,1724434246358,-421.412362,0.00017962,2]
[335691604,1724434246369,-421.412362,0.00017962,2]
[335691605,1724434246379,-3108.362656,0.00017962,2]
[335691606,1724434246390,-3108.362656,0.00017962,2]
[335691607,1724434246399,-3108.362656,0.00017962,2]
[335691608,1724434246409,-3108.362656,0.00017962,2]
[335691609,1724434246420,-421.412362,0.00017962,2]
[335691610,1724434246429,-421.412362,0.00017962,2]
[335691611,1724434246439,-421.412362,0.00017962,2]
[335691612,1724434246449,-421.412362,0.00017962,2]
[335691613,1724434246458,-3108.362656,0.00017962,2]
[335691614,1724434246468,-3108.362656,0.00017962,2]
[335691615,1724434246477,-3108.362656,0.00017962,2]
[335691616,1724434246487,-1289.24542185,0.00017962,2]
[335691617,1724434247556,-411.11179919,0.00016438,2]
[335691618,1724434253689,273.37336231,0.0001211,2]
[335691620,1724434311411,258.33917251,0.00025,120]
[335691621,1724434319967,1309.44591287,0.0001211,2]
[335691622,1724434321485,200.05206441,0.00014679,60]
[335691632,1724434345404,7216.5931209,0.0001211,2]
[335691633,1724434359716,258.33917251,0.00025,120]
[335691635,1724434394562,150.5,0.0001797,120]
[335691636,1724434395133,150.5,0.0001796,120]
[335691637,1724434395827,150.5,0.0001795,120]
[335691638,1724434396088,273.34,0.000248,120]
[335691639,1724434399821,220.8906946,0.0001211,2]
[335691641,1724434404242,258.33917251,0.00025,120]
[335691643,1724434417124,182.05291897,0.0001211,2]
[335691644,1724434422008,1076.08305704,0.0001211,2]
[335691645,1724434426930,1308.58590312,0.0001211,2]
[335691651,1724434515234,150.5,0.00017949,120]
[335691652,1724434515699,150.5,0.00017939,120]
[335691653,1724434516140,150.5,0.00017929,120]
[335691654,1724434516600,150.5,0.000248,120]
[335691655,1724434517049,150.5,0.0002479,120]
[335691657,1724434517562,150.5,0.0002478,120]
[335691691,1724434805018,150.0,0.00027,120]
[335691695,1724434822025,2193.98,0.00027,120]
[335691696,1724434830945,2193.98,0.00027,120]
[335691698,1724434841830,500.0,0.00027,120]
[335691699,1724434851261,500.0,0.00027,120]
[335691700,1724434860908,500.0,0.00027,120]
[335691701,1724434868013,200.05206441,0.0002478,60]
[335691702,1724434869985,500.0,0.00027,120]
[335691703,1724434881336,500.0,0.00027,120]
[335691705,1724434890022,500.0,0.00027,120]
[335691706,1724434898370,500.0,0.00027,120]
[335691708,1724434909870,500.0,0.00027,120]
[335691709,1724434913703,5000.0,0.00015,6]
[335691710,1724434923825,258.33917251,0.00027,120]
[335691713,1724434930391,5000.0,0.00015,6]
[335691732,1724434935023,387.95799712,0.00027,120]
[335691733,1724434945702,661.56113009,0.00015,6]
[335691739,1724434991930,200.05206441,0.00015,60]
[335691743,1724435027414,200.05206441,0.00018182,120]
[335691750,1724435076410,200.05206441,0.00018182,120]
[335691752,1724435159411,200.05206441,0.00022038,120]
[335691757,1724435234711,150.5,0.0001784,120]
[335691758,1724435235340,245.3,0.0001783,120]
[335691759,1724435272433,331.66712136,0.00021612,120]
[335691760,1724435356195,-300.0,0.00012162,2]
[335691761,1724435356218,-300.0,0.00012162,2]
[335691762,1724435356240,-35798.80510512,0.00012163,2]
[335691763,1724435356263,-24900.0,0.00012323,2]
[335691764,1724435356285,-250.0,0.00012361,2]
[335691765,1724435356308,-250.0,0.00012395,2]
[335691766,1724435356331,-250.0,0.00012429,2]
[335691767,1724435356356,-250.0,0.00012463,2]
[335691768,1724435356381,-250.0,0.00012496,2]
[335691769,1724435356403,-250.0,0.0001253,2]
[335691770,1724435356426,-250.0,0.00012564,2]
[335691771,1724435356449,-250.0,0.00012598,2]
[335691772,1724435356471,-1906.03026955,0.00012629,2]
[335691773,1724435356494,-250.0,0.00012632,2]
[335691774,1724435356517,-250.0,0.00012666,2]
[335691775,1724435356541,-250.0,0.000127,2]
[335691776,1724435356568,-250.0,0.00012734,2]
[335691777,1724435356591,-250.0,0.00012768,2]
[335691778,1724435356618,-2283.38976069,0.00012779,3]
[335691779,1724435356642,-250.0,0.00012802,2]
[335691780,1724435356665,-250.0,0.00012835,2]
[335691781,1724435356690,-250.0,0.00012869,2]
[335691782,1724435356712,-779.7606595,0.00012898,2]
[335691783,1724435356736,-250.0,0.00012903,2]
[335691784,1724435356758,-190.14748204,0.00012934,2]
[335691785,1724435356781,-250.0,0.00012937,2]
[335691786,1724435356803,-250.0,0.00012971,2]
[335691787,1724435356825,-932.03745378,0.00012971,2]
[335691788,1724435356847,-991.61536946,0.00012985,2]
[335691789,1724435356872,-155.80478878,0.00012985,2]
[335691790,1724435356895,-226.94154851,0.00012989,2]
[335691791,1724435356919,-489.91652495,0.00012999,2]
[335691792,1724435356942,-350.55394564,0.00013,2]
[335691793,1724435356965,-250.0,0.00013005,2]
[335691794,1724435356988,-174.76125691,0.00013051,2]
[335691795,1724435357010,-160.235409,0.00013178,2]
[335691796,1724435357039,-160.235409,0.000132,2]
[335691797,1724435357063,-500.0,0.000132,2]
[335691798,1724435357085,-500.0,0.000132,2]
[335691799,1724435357108,-500.0,0.000132,2]
[335691800,1724435357138,-160.235409,0.00013222,2]
[335691801,1724435357161,-160.235409,0.00013244,2]
[335691802,1724435357186,-300.0,0.00013349,2]
[335691803,1724435357210,-420.0,0.00013378,2]
[335691804,1724435357490,-154.74467129,0.00013697,2]
[335691805,1724435357513,-154.74467129,0.00013697,2]
[335691806,1724435357537,-9663.17336824,0.00013697,2]
[335691807,1724435357561,-185.62815877,0.00013698,2]
[335691808,1724435357582,-416.80256937,0.00013698,2]
[335691809,1724435357603,-572.841808,0.00013699,2]
[335691810,1724435357628,-500.0,0.00013699,2]
[335691811,1724435357655,-500.0,0.00013699,2]
[335691812,1724435357676,-515.67106589,0.00013699,2]
[335691813,1724435357696,-500.0,0.00013699,2]
[335691814,1724435357718,-500.0,0.00013699,2]
[335691815,1724435357740,-500.0,0.00013699,2]
[335691816,1724435357760,-500.0,0.00013699,2]
[335691817,1724435357781,-500.0,0.00013699,2]
[335691818,1724435357803,-500.0,0.00013699,2]
[335691819,1724435357826,-500.0,0.00013699,2]
[335691820,1724435357849,-500.0,0.00013699,2]
[335691821,1724435357879,-394.16197962,0.00013699,2]
[335691822,1724435364161,-105.83802038,0.00013699,2]
[335691823,1724435364185,-500.0,0.00013699,2]
[335691824,1724435364207,-500.0,0.00013699,2]
[335691825,1724435364229,-500.0,0.00013699,2]
[335691826,1724435364250,-500.0,0.00013699,2]
[335691827,1724435364272,-346.30436837,0.00013699,2]
[335692026,1724435433402,-300.0,0.00013698,2]
[335692028,1724435433412,-153.69563163,0.00013699,2]
[335692030,1724435433422,-500.0,0.00013699,2]
[335692032,1724435433432,-500.0,0.00013699,2]
[335692034,1724435433442,-500.0,0.00013699,2]
[335692036,1724435433453,-500.0,0.00013699,2]
[335692038,1724435433463,-500.0,0.00013699,2]
[335692040,1724435433472,-500.0,0.00013699,2]
[335692043,1724435433483,-500.0,0.00013699,2]
[335692045,1724435433492,-500.0,0.00013699,2]
[335692047,1724435433502,-500.0,0.00013699,2]
[335692049,1724435433512,-500.0,0.00013699,2]
[335692051,1724435433521,-500.0,0.00013699,2]
[335692052,1724435433530,-500.0,0.00013699,2]
[335692054,1724435433540,-500.0,0.00013699,2]
[335692056,1724435433549,-500.0,0.00013699,2]
[335692058,1724435433559,-500.0,0.00013699,2]
[335692060,1724435433568,-500.0,0.00013699,2]
[335692061,1724435433578,-500.0,0.00013699,2]
[335692063,1724435433587,-500.0,0.00013699,2]
[335692065,1724435433597,-500.0,0.00013699,2]
[335692067,1724435433607,-500.0,0.00013699,2]
[335692069,1724435433616,-500.0,0.00013699,2]
[335692071,1724435433626,-500.0,0.00013699,2]
[335692073,1724435433635,-500.0,0.00013699,2]
[335692074,1724435433645,-500.0,0.00013699,2]
[335692076,1724435433663,-500.0,0.00013699,2]
[335692078,1724435433675,-500.0,0.00013699,2]
[335692080,1724435433685,-500.0,0.00013699,2]
[335692082,1724435433695,-257.60988081,0.00013699,2]
[335692084,1724435433705,-500.0,0.00013699,2]
[335692086,1724435433715,-500.0,0.00013699,2]
[335692088,1724435433724,-500.0,0.00013699,2]
[335692089,1724435433734,-500.0,0.00013699,2]
[335692091,1724435433744,-500.0,0.00013699,2]
[335692093,1724435433754,-500.0,0.00013699,2]
[335692095,1724435433764,-500.0,0.00013699,2]
[335692097,1724435433774,-600.0,0.00013699,2]
[335692098,1724435433783,-500.0,0.00013699,2]
[335692100,1724435433793,-500.0,0.00013699,2]
[335692102,1724435433803,-185.85182694,0.00013699,2]
[335692103,1724435433812,-1309.44591287,0.00013699,2]
[335692105,1724435433822,-1526.94118496,0.00013699,2]
[335692106,1724435433832,-991.25718944,0.00013699,2]
[335692108,1724435433842,-500.0,0.000137,2]
[335692110,1724435433853,-500.0,0.000137,2]
[335692112,1724435433863,-201.33744455,0.00013792,2]
[335692113,1724435433872,-557.32438164,0.00013792,2]
[335692115,1724435433882,-772.26164112,0.00013792,2]
[335692117,1724435433892,-342.7929108,0.00013971,2]
[335692118,1724435433904,-227.54108219,0.00013971,2]
[335692120,1724435433913,-898.82720151,0.00013971,2]
[335692121,1724435433923,-823.84946416,0.00013971,2]
[335692122,1724435433932,-194.87445923,0.00013971,2]
[335692123,1724435433942,-3000.0,0.00014059,2]
[335692124,1724435433953,-180.86285832,0.00014245,2]
[335692125,1724435433964,-180.86285832,0.00014245,2]
[335692126,1724435433974,-413.74889628,0.00014245,2]
[335692127,1724435433984,-154.7767652,0.00014245,2]
[335692128,1724435433994,-307.65893703,0.00014245,2]
[335692129,1724435434005,-188.56371582,0.00014245,2]
[335692130,1724435434014,-303.97484667,0.00014245,2]
[335692131,1724435434025,-535.01392671,0.00014245,2]
[335692132,1724435434034,-157.14223377,0.00014245,2]
[335692133,1724435434043,-309.45844772,0.00014245,2]
[335692134,1724435434053,-224.16153548,0.00014245,2]
[335692135,1724435434062,-184.61601164,0.00014245,2]
[335692136,1724435434072,-520.80380986,0.00014245,2]
[335692137,1724435434082,-172.0170885,0.00014247,2]
[335692138,1724435434092,-545.792859,0.00014247,2]
[335692139,1724435434102,-1000.0,0.00014248,2]
[335692140,1724435434112,-1000.0,0.00014248,2]
[335692141,1724435434121,-1067.92592686,0.00014248,2]
[335692142,1724435434131,-160.49093254,0.00014519,2]
[335692143,1724435434140,-196.6746805,0.00014519,2]
[335692144,1724435434157,-3092.64278727,0.00014519,2]
[335692145,1724435434167,-308.32105333,0.00014519,2]
[335692146,1724435434177,-197.00259492,0.00014519,2]
[335692147,1724435434187,-154.93215599,0.00014519,2]
[335692148,1724435434196,-155.10351085,0.00014519,2]
[335692149,1724435434210,-154.77557233,0.00014519,2]
[335692150,1724435434219,-264.76319268,0.00015,2]
[335692151,1724435434229,-420.0,0.00015068,2]
[335692152,1724435434239,-602.31593733,0.00015146,2]
[335692153,1724435434248,-800.65919201,0.00015146,2]
[335692154,1724435434258,-1000.0,0.000155,2]
[335692155,1724435434267,-4424.94954231,0.00016,2]
[335692156,1724435434278,-1000.0,0.00016,2]
[335692157,1724435434288,-1000.0,0.00016438,2]